{"text_format":"1","workbook":"xlsx","n_sheets":5,"sheets":["ورقة رئيسية","الرئيسى","رضا الخطيب","محمود عبد الله","هيام محمود"],"not_rendered":{"charts":0,"images":0,"macros":0,"external_links":0,"defined_names":0,"comments":0,"pivot_tables":0},"unopened":[],"bounds":{"document_bytes":16777216,"sheet_cells":100000,"rows_first":2000,"rows_last":500,"rows_between":2000,"halvings":0,"cell_chars":16384,"cell_head_chars":4096},"cells_cut":0,"cells_raw":0,"read":"whole","date_system":"1900"}

{"sheet":"ورقة رئيسية","index":0,"n_rows":22,"n_cols":7,"rows_kept":22,"cut":false,"hidden":false,"merged":[]}
[]
[]
[]
[]
[null,"الكود"]
[null,"الاسم"]
[]
[null,"م","التاريخ","البيان","مدين","دائن","رصيد"]
[null,null,null,null,null,null,{"$f":"0+E9-F9","v":0}]
[null,null,null,null,null,null,{"$f":"+G9+E10-F10","v":0}]
[null,null,null,null,null,null,{"$f":"+G10+E11-F11","v":0}]
[null,null,null,null,null,null,0]
[null,null,null,null,null,null,0]
[null,null,null,null,null,null,0]
[null,null,null,null,null,null,0]
[null,null,null,null,null,null,0]
[null,null,null,null,null,null,0]
[null,null,null,null,null,null,0]
[null,null,null,null,null,null,0]
[null,null,null,null,null,null,0]
[null,null,null,null,null,null,0]
[null,null,null,null,null,null,0]

{"sheet":"الرئيسى","index":1,"n_rows":10,"n_cols":7,"rows_kept":10,"cut":false,"hidden":false,"merged":[]}
[]
[]
[]
[null,"الاسم","المبلغ"]
[null,"رضا الخطيب",500]
[null,"محمود عبد الله",5150,null,null,null,"كود برمجى "]
[null,"عبد الله محمود",60,null,null,"المطلوب "]
[null,null,null,null,null,1,"عند كتابة كود  واسم جديد هنا يتم نسخ صفحة ورقة رئيسية باسم العميل"]
[null,null,null,null,null,2,"عند عمل صفحة جديده باسم عميل غير موجود بالقائمة يتم اضافتها مباشرة في القائمة "]
[null,null,null,null,null,3,"عمل ارتباط تشاعبى من القائمة الى الصفحة ثم العكس "]

{"sheet":"رضا الخطيب","index":2,"n_rows":22,"n_cols":7,"rows_kept":22,"cut":false,"hidden":false,"merged":[]}
[]
[]
[]
[]
[null,"الكود",{"$f":"+الرئيسى!#REF!","v":{"$error":"#REF!"}}]
[null,"الاسم",{"$f":"+الرئيسى!B5","v":"رضا الخطيب"}]
[]
[null,"م","التاريخ","البيان","مدين","دائن","رصيد"]
[null,1,"2022-05-01","سداد",500,null,{"$f":"0-E9+F9","v":-500}]
[null,2,"2022-05-06","مستحقات",null,1000,{"$f":"+G9-E10+F10","v":500}]
[null,3,"2022-05-07","سداد",250,null,{"$f":"+G10-E11+F11","v":250}]
[null,4,"2022-05-08","مستحقات",null,250,500]
[null,null,null,null,null,null,500]
[null,null,null,null,null,null,500]
[null,null,null,null,null,null,500]
[null,null,null,null,null,null,500]
[null,null,null,null,null,null,500]
[null,null,null,null,null,null,500]
[null,null,null,null,null,null,500]
[null,null,null,null,null,null,500]
[null,null,null,null,null,null,500]
[null,null,null,null,null,null,{"$f":"+G21+E22-F22","v":500}]

{"sheet":"محمود عبد الله","index":3,"n_rows":22,"n_cols":7,"rows_kept":22,"cut":false,"hidden":false,"merged":[]}
[]
[]
[]
[]
[null,"الكود",600]
[null,"الاسم","محمود عبد الله"]
[]
[null,"م","التاريخ","البيان","مدين","دائن","رصيد"]
[null,1,"2022-05-01","سداد",250,null,{"$f":"0-E9+F9","v":-250}]
[null,2,"2022-05-06","مستحقات",null,6000,{"$f":"+G9-E10+F10","v":5750}]
[null,3,"2022-05-07","سداد",600,null,{"$f":"+G10-E11+F11","v":5150}]
[null,4,"2022-05-08","مستحقات",null,null,5150]
[null,null,null,null,null,null,5150]
[null,null,null,null,null,null,5150]
[null,null,null,null,null,null,5150]
[null,null,null,null,null,null,5150]
[null,null,null,null,null,null,5150]
[null,null,null,null,null,null,5150]
[null,null,null,null,null,null,5150]
[null,null,null,null,null,null,5150]
[null,null,null,null,null,null,5150]
[null,null,null,null,null,null,{"$f":"+G21+E22-F22","v":5150}]

{"sheet":"هيام محمود","index":4,"n_rows":22,"n_cols":7,"rows_kept":22,"cut":false,"hidden":false,"merged":[]}
[]
[]
[]
[]
[null,"الكود",750]
[null,"الاسم","هيام محمود"]
[]
[null,"م","التاريخ","البيان","مدين","دائن","رصيد"]
[null,1,"2022-05-01","سداد",250,null,{"$f":"0-E9+F9","v":-250}]
[null,2,"2022-05-06","مستحقات",null,6000,{"$f":"+G9-E10+F10","v":5750}]
[null,3,"2022-05-07","سداد",600,null,{"$f":"+G10-E11+F11","v":5150}]
[null,4,"2022-05-08","مستحقات",null,null,5150]
[null,null,null,null,null,null,5150]
[null,null,null,null,null,null,5150]
[null,null,null,null,null,null,5150]
[null,null,null,null,null,null,5150]
[null,null,null,null,null,null,5150]
[null,null,null,null,null,null,5150]
[null,null,null,null,null,null,5150]
[null,null,null,null,null,null,5150]
[null,null,null,null,null,null,5150]
[null,null,null,null,null,null,{"$f":"+G21+E22-F22","v":5150}]